fUSD/lending_fUSD_20240907
["ID","MTS","AMOUNT","RATE_DAILY","PERIOD"]
[337493972,1725705806528,150.0,0.00011975,2]
[337493973,1725705806550,150.0,0.00011975,2]
[337493974,1725705806571,150.0,0.00011975,2]
[337493975,1725705806594,150.0,0.00011975,2]
[337493976,1725705806617,150.0,0.00011975,2]
[337493977,1725705806642,1112.14,0.00011975,2]
[337493978,1725705856995,150.0,0.00012007,2]
[337493979,1725705857016,150.0,0.00012007,2]
[337493980,1725705857036,150.0,0.00012007,2]
[337493981,1725705857057,150.0,0.00012007,2]
[337493982,1725705857077,150.0,0.00012007,2]
[337493983,1725705857106,-45.0,0.00012007,2]
[337493984,1725705878156,150.0,0.00012007,2]
[337493985,1725705878178,150.0,0.00012007,2]
[337493986,1725705878198,150.0,0.00012007,2]
[337493987,1725705878218,150.0,0.00012007,2]
[337493988,1725705878238,150.0,0.00012007,2]
[337493989,1725705878260,45.0,0.00012007,2]
[337493994,1725705995212,1500.0,0.00011935,2]
[337493995,1725705998293,250.0,0.00011935,2]
[337494005,1725706055850,215.76,0.00010959,2]
[337494006,1725706128198,250.0,0.00011987,2]
[337494007,1725706133234,278.88,0.00010069,2]
[337494026,1725706231681,-716.41287549,0.00012011,2]
[337494027,1725706231693,-250.0,0.00012017,2]
[337494028,1725706231702,-186.68,0.00012111,2]
[337494029,1725706231711,-182.18105442,0.00012151,2]
[337494030,1725706231726,-817.81894558,0.00012151,2]
[337494031,1725706231736,-795.0,0.00012187,2]
[337494032,1725706231745,-172.11,0.00012322,2]
[337494033,1725706231757,-278.88,0.00012333,2]
[337494034,1725706231770,-420.69380913,0.00012383,2]
[337494035,1725706231780,-150.0,0.00012592,2]
[337494036,1725706231788,-300.0,0.00012592,2]
[337494037,1725706231798,-6682.29,0.00012593,2]
[337494038,1725706231809,-18011.3,0.00012593,2]
[337494039,1725706231818,-244.54,0.00012593,2]
[337494040,1725706231827,-7642.92728327,0.00012593,2]
[337494041,1725706231848,-300.0,0.00012593,2]
[337494042,1725706231858,-714.46336982,0.00012593,2]
[337494043,1725706231870,-1196.32788,0.00012593,2]
[337494044,1725706231917,-814.99724662,0.00012593,2]
[337494045,1725706231929,-960.92161359,0.00012593,2]
[337494046,1725706231942,-880.70724819,0.00012593,2]
[337494047,1725706231953,-1706.98,0.00012593,2]
[337494049,1725706234058,161.03,0.00011966,2]
[337494060,1725706237772,-1879.79073718,0.00012593,2]
[337494061,1725706237784,-12729.60462133,0.00012593,2]
[337494062,1725706237793,-499.99,0.00012593,2]
[337494063,1725706237802,-418.499,0.00012714,2]
[337494064,1725706237811,-241.454,0.00012714,2]
[337494065,1725706237821,-1196.89971,0.00012715,2]
[337494066,1725706237831,-150.0,0.00012762,2]
[337494067,1725706237841,-166.31053917,0.0001279,2]
[337494068,1725706237851,-6376.46149777,0.000128,2]
[337494087,1725706238262,-448.7075297,0.000128,2]
[337494089,1725706238274,-4442.84168715,0.000128,2]
[337494091,1725706238286,-585.41820824,0.000128,2]
[337494093,1725706238297,-1470.87908501,0.000128,2]
[337494096,1725706238311,-3006.44051846,0.000128,2]
[337494098,1725706238322,-7442.804616,0.000128,2]
[337494100,1725706238333,-323.13945584,0.000128,2]
[337494102,1725706238344,-1262.14798967,0.000128,2]
[337494104,1725706238355,-2107.96685003,0.000128,2]
[337494106,1725706238366,-504.46416423,0.000128,2]
[337494108,1725706238378,-14950.22974157,0.000128,2]
[337494110,1725706238387,-795.0,0.00012828,2]
[337494112,1725706238397,-3838.94639721,0.0001288,2]
[337494114,1725706238408,-394.12782113,0.0001288,2]
[337494116,1725706238419,-564.662132,0.0001288,2]
[337494118,1725706238435,-331.11229314,0.0001288,2]
[337494121,1725706238446,-5000.0,0.0001288,2]
[337494122,1725706238457,-1595.48310882,0.0001288,2]
[337494123,1725706238469,-8928.78405659,0.0001288,2]
[337494124,1725706238479,-9571.39362899,0.0001288,2]
[337494125,1725706239767,-581.92828036,0.0001288,2]
[337494126,1725706239825,-278.90148228,0.0001288,2]
[337494127,1725706239838,-1335.0,0.0001288,2]
[337494128,1725706239851,-1197.3473922,0.0001288,2]
[337494129,1725706239862,-2495.58714316,0.0001288,2]
[337494130,1725706239877,-533.82,0.0001288,2]
[337494131,1725706239937,-311.6,0.0001288,2]
[337494132,1725706240091,-22349.85010713,0.0001288,2]
[337494133,1725706240101,-1667.9435,0.0001289,2]
[337494134,1725706240111,-499.371199,0.000129,2]
[337494135,1725706240120,-316.0156951,0.000129,2]
[337494136,1725706240129,-150.0,0.00012977,2]
[337494137,1725706240139,-581.0,0.00012986,2]
[337494138,1725706240150,-3416.0,0.00012986,2]
[337494139,1725706240160,-150.56,0.0001299,2]
[337494140,1725706240171,-773.74126147,0.0001299,2]
[337494141,1725706240181,-87073.37802907,0.0001299,2]
[337494142,1725706240194,-3033.07094716,0.0001299,2]
[337494143,1725706240204,-695.95800116,0.0001299,2]
[337494144,1725706240225,-8918.39392138,0.0001299,2]
[337494145,1725706240235,-2000.0,0.0001299,2]
[337494146,1725706240245,-200.0,0.0001299,2]
[337494147,1725706240254,-151.0,0.0001299,2]
[337494148,1725706240265,-151.0,0.0001299,2]
[337494149,1725706240275,-151.0,0.0001299,2]
[337494150,1725706240286,-151.0,0.0001299,2]
[337494151,1725706240295,-151.0,0.0001299,2]
[337494152,1725706240306,-246.516554,0.0001299,2]
[337494153,1725706240315,-151.0,0.0001299,2]
[337494154,1725706240325,-151.0,0.0001299,2]
[337494155,1725706240335,-151.0,0.0001299,2]
[337494156,1725706240344,-151.0,0.0001299,2]
[337494157,1725706240353,-151.0,0.0001299,2]
[337494158,1725706240365,-218.59127,0.0001299,2]
[337494159,1725706240376,-218.59127,0.0001299,2]
[337494160,1725706240388,-151.0,0.0001299,2]
[337494161,1725706240398,-151.0,0.0001299,2]
[337494162,1725706240410,-151.0,0.0001299,2]
[337494163,1725706240420,-151.0,0.0001299,2]
[337494164,1725706240429,-151.0,0.0001299,2]
[337494165,1725706240439,-324.403536,0.0001299,2]
[337494166,1725706240448,-324.403536,0.0001299,2]
[337494167,1725706240457,-151.0,0.0001299,2]
[337494168,1725706240467,-151.0,0.0001299,2]
[337494169,1725706240477,-504.416708,0.0001299,2]
[337494170,1725706240488,-504.416708,0.0001299,2]
[337494171,1725706240497,-151.0,0.0001299,2]
[337494172,1725706240508,-773.74126147,0.0001299,2]
[337494173,1725706240519,-773.74126147,0.0001299,2]
[337494174,1725706240529,-22208.91366118,0.00012996,2]
[337494175,1725706243118,-5143.92918702,0.00012996,2]
[337494176,1725706243127,-150.0,0.00012997,2]
[337494177,1725706243136,-1000.0,0.00012999,2]
[337494178,1725706243145,-500.0,0.00012999,2]
[337494179,1725706243154,-500.0,0.00012999,2]
[337494180,1725706243163,-379.38060674,0.00012999,2]
[337494181,1725706243172,-500.0,0.00012999,2]
[337494182,1725706243181,-1160.0,0.00012999,2]
[337494184,1725706243190,-7557.59526092,0.00013,2]
[337494187,1725706243202,-566.35561271,0.00013,2]
[337494188,1725706243212,-473.25526323,0.00013,2]
[337494189,1725706243223,-38874.24022035,0.00013,2]
[337494190,1725706243233,-12732.91714098,0.00013,2]
[337494191,1725706243244,-33717.400356,0.00013,2]
[337494192,1725706243262,-601421.39144246,0.00013,2]
[337494196,1725706245834,-2066.50353201,0.00013,2]
[337494197,1725706245969,-432.05724792,0.00013,2]
[337494198,1725706245980,-612.34305062,0.00013,2]
[337494199,1725706245991,-8499.85506002,0.00013,2]
[337494200,1725706246002,-16288.40638518,0.00013,2]
[337494201,1725706246016,-4011.40893523,0.00013,2]
[337494202,1725706246027,-24315.09189749,0.00013,2]
[337494203,1725706246049,-5852.2,0.00013,2]
[337494208,1725706545194,159.19,0.00010959,2]
[337494209,1725706661247,250.0,0.00011932,2]
[337494210,1725706661299,272.14,0.00010014,2]
[337494211,1725706736880,196.5,0.00011877,2]
[337494212,1725706743690,195.1,0.00011909,2]
[337494214,1725706981582,250.0,0.00011868,2]
[337494216,1725707039353,250.0,0.00011904,2]
[337494220,1725707174489,250.0,0.00011837,2]
[337494221,1725707200214,258.53,9.951e-05,2]
[337494222,1725707208658,750.0,0.00011,2]
[337494244,1725707334874,-7500.0,0.00012028,2]
[337494245,1725707334903,-276.51373323,0.00012028,2]
[337494246,1725707334931,-300.0,0.00012063,2]
[337494247,1725707334962,-3805.12506572,0.00012064,2]
[337494255,1725707372196,189.96,0.00011899,2]
[337494256,1725707396759,1000.0,0.00011927,2]
[337494268,1725707431820,-328.28053856,0.00012064,2]
[337494270,1725707431830,-391.88821597,0.00012118,2]
[337494272,1725707431839,-150.0,0.00012127,2]
[337494274,1725707431848,-300.0,0.00012127,2]
[337494276,1725707431857,-500.0,0.00012127,2]
[337494277,1725707431868,-331.73742237,0.00012127,2]
[337494278,1725707431878,-19099.39631548,0.00012128,2]
[337494279,1725707431893,-406.46096392,0.00012128,2]
[337494280,1725707431904,-7776.89948567,0.00012128,2]
[337494281,1725707431916,-7539.43401926,0.00012128,2]
[337494282,1725707431939,-2700.0,0.00012128,2]
[337494283,1725707432131,-35014.79109276,0.00012128,2]
[337494284,1725707432144,-9669.50989184,0.00012128,2]
[337494285,1725707432156,-752.17210597,0.00012128,2]
[337494286,1725707432167,-4507.06363913,0.00012128,2]
[337494287,1725707432185,-404.0,0.00012128,2]
[337494289,1725707432196,-845.87545876,0.00012128,2]
[337494292,1725707432208,-1028.79,0.00012128,2]
[337494293,1725707432219,-555.249,0.00012128,2]
[337494294,1725707432230,-1249.78872132,0.00012128,2]
[337494295,1725707432241,-3186.53480063,0.00012128,2]
[337494296,1725707432252,-6036.6456329,0.00012128,2]
[337494297,1725707432264,-389.56876188,0.00012128,2]
[337494300,1725707437904,-353.01173433,0.00012128,2]
[337494303,1725707437962,-1169.55400002,0.00012128,2]
[337494304,1725707437973,-4645.0849858,0.00012128,2]
[337494305,1725707438145,-526.17759152,0.00012128,2]
[337494306,1725707438159,-309051.80179881,0.00012128,2]
[337494307,1725707438169,-168.25,0.00012164,2]
[337494308,1725707438180,-258.53,0.00012215,2]
[337494309,1725707438190,-2440.49,0.00012215,2]
[337494310,1725707438200,-150.99,0.00012215,2]
[337494311,1725707438210,-150.99,0.00012215,2]
[337494312,1725707438219,-499.99,0.00012215,2]
[337494313,1725707438229,-1075.45,0.00012347,2]
[337494314,1725707438238,-178.34,0.00012369,2]
[337494315,1725707438248,-396.29,0.00012379,2]
[337494316,1725707438258,-276.51373317,0.00012438,2]
[337494317,1725707438267,-2354.23,0.00012779,2]
[337494318,1725707438277,-11037.0951,0.0001278,2]
[337494319,1725707438287,-420.44147903,0.00012842,2]
[337494321,1725707438296,-276.51373317,0.00012849,2]
[337494323,1725707438306,-997.41643,0.0001287,2]
[337494324,1725707438316,-590.5163,0.0001289,2]
[337494325,1725707438326,-1101.7316,0.0001289,2]
[337494326,1725707438337,-1000.0,0.00012899,2]
[337494327,1725707438346,-5893.509,0.000129,2]
[337494328,1725707438356,-274.76679836,0.000129,2]
[337494329,1725707438366,-152.79080492,0.000129,2]
[337494330,1725707438375,-600.0,0.00012973,2]
[337494331,1725707438387,-196.01087573,0.00012973,2]
[337494332,1725707438396,-500.0,0.00012973,2]
[337494333,1725707438406,-400.38227572,0.00012973,2]
[337494334,1725707438416,-500.0,0.00012973,2]
[337494335,1725707438425,-386.87063074,0.0001299,2]
[337494336,1725707438435,-386.87063074,0.0001299,2]
[337494337,1725707438444,-386.87063074,0.0001299,2]
[337494338,1725707438454,-186.281202,0.00012996,2]
[337494339,1725707438463,-2387.1764664,0.00012996,2]
[337494340,1725707438472,-16712.0673113,0.00012996,2]
[337494341,1725707438482,-151.98346748,0.00012999,2]
[337494343,1725707438492,-1479.82642066,0.00012999,2]
[337494345,1725707438502,-1157.0,0.00012999,2]
[337494347,1725707438511,-724755.01719065,0.00013,2]
[337494349,1725707438521,-1043238.4126339,0.00013,2]
[337494351,1725707438533,-424.79146568,0.00013,2]
[337494354,1725707438549,-521.17192969,0.00013,2]
[337494356,1725707438562,-1244.54999999,0.00013,2]
[337494504,1725707439997,-3152.16,0.00013,2]
[337494507,1725707440009,-329.7723705,0.00013,2]
[337494508,1725707440021,-3162.60000008,0.00013,2]
[337494509,1725707440063,-65076.82359592,0.00013,2]
[337494510,1725707440075,-645.18180464,0.00013,2]
[337494511,1725707440086,-1563.01664719,0.00013,2]
[337494512,1725707440098,-1015.75187423,0.00013,2]
[337494513,1725707440109,-1352.59422969,0.00013,2]
[337494514,1725707440120,-23473.51817953,0.00013,2]
[337494515,1725707440132,-2268.5,0.00013,2]
[337494516,1725707440262,-608.4720722,0.00013,2]
[337494517,1725707440315,-3607365.65513087,0.00013,2]
[337494518,1725707440325,-1340.744,0.00013,2]
[337494519,1725707440334,-561595.36993963,0.00013,2]
[337494520,1725707440343,-500.50709239,0.00013,2]
[337494521,1725707440352,-1361.29743345,0.00013,2]
[337494522,1725707440361,-710.34553941,0.00013,2]
[337494524,1725707440370,-2000.0,0.00013,2]
[337494526,1725707440379,-200.0,0.00013,2]
[337494528,1725707440389,-151.0,0.00013,2]
[337494530,1725707440398,-151.0,0.00013,2]
[337494532,1725707440407,-151.0,0.00013,2]
[337494534,1725707440416,-151.0,0.00013,2]
[337494536,1725707440425,-151.0,0.00013,2]
[337494538,1725707440434,-151.0,0.00013,2]
[337494540,1725707440443,-151.0,0.00013,2]
[337494541,1725707440452,-151.0,0.00013,2]
[337494543,1725707440462,-151.0,0.00013,2]
[337494545,1725707440471,-151.0,0.00013,2]
[337494547,1725707440481,-278.138009,0.00013,2]
[337494549,1725707440490,-151.0,0.00013,2]
[337494551,1725707440499,-196.732143,0.00013,2]
[337494553,1725707440508,-196.732143,0.00013,2]
[337494555,1725707440517,-151.0,0.00013,2]
[337494557,1725707440526,-196.732143,0.00013,2]
[337494559,1725707440536,-196.732143,0.00013,2]
[337494561,1725707440545,-151.0,0.00013,2]
[337494564,1725707440554,-151.0,0.00013,2]
[337494566,1725707440563,-170.31234,0.00013,2]
[337494568,1725707440572,-151.0,0.00013,2]
[337494570,1725707440581,-151.0,0.00013,2]
[337494572,1725707440590,-151.0,0.00013,2]
[337494574,1725707440599,-151.0,0.00013,2]
[337494576,1725707440608,-151.0,0.00013,2]
[337494578,1725707440617,-151.0,0.00013,2]
[337494580,1725707440626,-161.47238,0.00013,2]
[337494582,1725707440636,-151.0,0.00013,2]
[337494584,1725707440645,-151.0,0.00013,2]
[337494586,1725707440654,-800.0,0.00013,2]
[337494588,1725707440664,-1606.136996,0.00013,2]
[337494590,1725707440673,-151.0,0.00013,2]
[337494592,1725707440682,-151.0,0.00013,2]
[337494594,1725707440691,-151.0,0.00013,2]
[337494595,1725707440699,-151.0,0.00013,2]
[337494597,1725707440708,-512.311487,0.00013,2]
[337494599,1725707440717,-512.311487,0.00013,2]
[337494601,1725707440726,-152.230569,0.00013,2]
[337494603,1725707440735,-1041.0407253,0.00013,2]
[337494605,1725707440745,-154.068706,0.00013,2]
[337494607,1725707440754,-154.068706,0.00013,2]
[337494609,1725707440763,-154.068706,0.00013,2]
[337494611,1725707440773,-154.068706,0.00013,2]
[337494613,1725707440782,-151.0,0.00013,2]
[337494615,1725707440791,-151.0,0.00013,2]
[337494617,1725707440800,-151.0,0.00013,2]
[337494619,1725707440809,-151.0,0.00013,2]
[337494621,1725707440819,-151.0,0.00013,2]
[337494623,1725707440828,-151.0,0.00013,2]
[337494625,1725707440837,-151.0,0.00013,2]
[337494627,1725707440846,-151.0,0.00013,2]
[337494629,1725707440857,-151.0,0.00013,2]
[337494631,1725707440866,-151.0,0.00013,2]
[337494633,1725707440876,-2450.5397279,0.00013,2]
[337494635,1725707440886,-397.299698,0.00013,2]
[337494637,1725707440895,-151.0,0.00013,2]
[337494639,1725707440905,-397.299698,0.00013,2]
[337494641,1725707440914,-252.23223,0.00013,2]
[337494643,1725707440923,-397.299698,0.00013,2]
[337494645,1725707440932,-397.299698,0.00013,2]
[337494647,1725707440941,-151.0,0.00013,2]
[337494649,1725707440951,-500.0,0.00013014,2]
[337494650,1725707440960,-500.0,0.00013018,2]
[337494652,1725707440969,-500.0,0.00013027,2]
[337494654,1725707440978,-500.0,0.00013036,2]
[337494656,1725707440987,-500.0,0.00013045,2]
[337494658,1725707440997,-500.0,0.00013053,2]
[337494660,1725707441006,-500.0,0.00013062,2]
[337494662,1725707441015,-211.49,0.00013071,2]
[337494664,1725707441024,-500.0,0.00013071,2]
[337494666,1725707441034,-500.0,0.0001308,2]
[337494668,1725707441043,-500.0,0.00013089,2]
[337494670,1725707441052,-500.0,0.00013097,2]
[337494672,1725707441061,-500.0,0.00013106,2]
[337494674,1725707441071,-500.0,0.00013115,2]
[337494676,1725707441080,-500.0,0.00013124,2]
[337494678,1725707441089,-500.0,0.00013133,2]
[337494679,1725707441100,-500.0,0.00013141,2]
[337494680,1725707441109,-500.0,0.0001315,2]
[337494681,1725707441119,-500.0,0.00013159,2]
[337494682,1725707441127,-500.0,0.00013168,2]
[337494683,1725707441138,-500.0,0.00013177,2]
[337494684,1725707441148,-10000.0,0.00013177,2]
[337494685,1725707441157,-500.0,0.00013185,2]
[337494686,1725707441166,-500.0,0.00013194,2]
[337494687,1725707441176,-151.0,0.00013203,2]
[337494688,1725707441185,-512.311487,0.00013203,2]
[337494689,1725707441194,-512.311487,0.00013203,2]
[337494690,1725707441204,-500.0,0.00013203,2]
[337494691,1725707441213,-500.0,0.00013212,2]
[337494692,1725707441223,-500.0,0.00013221,2]
[337494693,1725707441232,-500.0,0.00013229,2]
[337494694,1725707441241,-255.0,0.00013237,2]
[337494695,1725707441251,-1606.136996,0.00013238,2]
[337494696,1725707441260,-151.0,0.00013238,2]
[337494697,1725707441270,-500.0,0.00013238,2]
[337494698,1725707441279,-500.0,0.00013247,2]
[337494699,1725707441289,-500.0,0.00013256,2]
[337494700,1725707441299,-162.82118,0.00013256,2]
[337494701,1725707441308,-190.754218,0.00013256,2]
[337494702,1725707441317,-151.0,0.00013256,2]
[337494703,1725707441326,-151.0,0.00013256,2]
[337494704,1725707441335,-276.51373317,0.00013259,2]
[337494705,1725707441344,-500.0,0.00013265,2]
[337494706,1725707441354,-500.0,0.00013273,2]
[337494707,1725707441363,-500.0,0.00013282,2]
[337494708,1725707441373,-500.0,0.00013291,2]
[337494709,1725707441383,-500.0,0.000133,2]
[337494710,1725707441392,-500.0,0.00013309,2]
[337494711,1725707441402,-420.0,0.00013311,2]
[337494712,1725707441412,-500.0,0.00013317,2]
[337494713,1725707441421,-151.0,0.00013324,2]
[337494714,1725707441430,-397.299698,0.00013324,2]
[337494715,1725707441440,-397.299698,0.00013324,2]
[337494716,1725707441450,-151.0,0.00013326,2]
[337494717,1725707441460,-151.0,0.00013326,2]
[337494718,1725707441470,-170.31234,0.00013326,2]
[337494719,1725707441480,-500.0,0.00013326,2]
[337494720,1725707441491,-500.0,0.00013335,2]
[337494721,1725707441500,-500.0,0.00013344,2]
[337494722,1725707441510,-500.0,0.00013353,2]
[337494723,1725707441520,-154.068706,0.00013353,2]
[337494724,1725707441530,-154.068706,0.00013353,2]
[337494725,1725707441540,-151.0,0.00013353,2]
[337494726,1725707441549,-196.5,0.00013361,2]
[337494727,1725707441559,-500.0,0.00013361,2]
[337494728,1725707441569,-150.58,0.0001337,2]
[337494729,1725707441579,-150.0,0.0001337,2]
[337494730,1725707441588,-150.0,0.0001337,2]
[337494731,1725707441598,-150.0,0.0001337,2]
[337494732,1725707441607,-150.0,0.0001337,2]
[337494733,1725707441616,-150.0,0.0001337,2]
[337494734,1725707441626,-150.0,0.0001337,2]
[337494735,1725707441636,-150.0,0.0001337,2]
[337494736,1725707441646,-150.0,0.0001337,2]
[337494737,1725707441655,-150.0,0.0001337,2]
[337494738,1725707441665,-340.74,0.0001337,2]
[337494739,1725707441675,-152.172536,0.0001337,2]
[337494740,1725707441684,-500.0,0.0001337,2]
[337494741,1725707441693,-500.0,0.00013379,2]
[337494742,1725707441702,-500.0,0.00013388,2]
[337494743,1725707441711,-997.41643,0.0001339,2]
[337494744,1725707441721,-500.0,0.00013397,2]
[337494745,1725707441731,-500.0,0.00013405,2]
[337494746,1725707441740,-500.0,0.00013414,2]
[337494747,1725707441750,-1000.0,0.00013418,2]
[337494748,1725707441760,-500.0,0.00013423,2]
[337494749,1725707441770,-500.0,0.00013432,2]
[337494750,1725707441781,-500.0,0.00013441,2]
[337494751,1725707441790,-500.0,0.00013449,2]
[337494752,1725707441800,-500.0,0.00013458,2]
[337494753,1725707441810,-161.03,0.00013462,2]
[337494754,1725707441820,-228.842,0.00013463,2]
[337494755,1725707441829,-5966.635,0.00013463,2]
[337494756,1725707441839,-1144.0,0.00013463,2]
[337494757,1725707441849,-1078.0,0.00013463,2]
[337494758,1725707441859,-500.0,0.00013467,2]
[337494759,1725707441868,-500.0,0.00013476,2]
[337494760,1725707441877,-500.0,0.00013485,2]
[337494761,1725707441887,-500.0,0.00013493,2]
[337494762,1725707441896,-500.0,0.00013502,2]
[337494763,1725707441906,-795.0,0.00013503,2]
[337494764,1725707441915,-196.732143,0.00013504,2]
[337494765,1725707441925,-196.732143,0.00013504,2]
[337494766,1725707441935,-151.0,0.00013511,2]
[337494767,1725707441946,-151.0,0.00013511,2]
[337494768,1725707441956,-151.0,0.00013511,2]
[337494769,1725707441965,-500.0,0.00013511,2]
[337494770,1725707441975,-500.0,0.0001352,2]
[337494771,1725707441985,-500.0,0.00013529,2]
[337494772,1725707441995,-500.0,0.00013537,2]
[337494773,1725707442004,-1582.75364891,0.00013537,2]
[337494774,1725707442014,-316.55072978,0.00013537,2]
[337494775,1725707442024,-8500.0,0.00013537,2]
[337494776,1725707442035,-1000.0,0.00013599,2]
[337494777,1725707442044,-359.0,0.000136,2]
[337494778,1725707442054,-1000.0,0.000136,2]
[337494779,1725707442064,-226.0,0.000136,2]
[337494780,1725707442073,-151.0,0.00013639,2]
[337494781,1725707442083,-512.311487,0.00013639,2]
[337494782,1725707442093,-512.311487,0.00013639,2]
[337494783,1725707442105,-276.51373317,0.00013669,2]
[337494784,1725707442115,-792.955,0.00013678,2]
[337494785,1725707442124,-316.856,0.00013678,2]
[337494786,1725707442135,-1606.136996,0.00013678,2]
[337494787,1725707442145,-151.0,0.00013678,2]
[337494788,1725707442154,-151.0,0.00013699,2]
[337494789,1725707442163,-151.0,0.00013699,2]
[337494790,1725707442173,-151.0,0.00013699,2]
[337494791,1725707442184,-151.0,0.00013699,2]
[337494792,1725707442193,-247.444756,0.00013699,2]
[337494793,1725707442202,-150.0,0.00013699,2]
[337494794,1725707442211,-150.0,0.00013728,2]
[337494795,1725707442221,-151.0,0.00013756,2]
[337494796,1725707442230,-151.0,0.00013756,2]
[337494797,1725707442239,-1546.0,0.00013756,2]
[337494798,1725707442249,-1108.006,0.00013756,2]
[337494799,1725707442259,-2582.622,0.00013756,2]
[337494800,1725707442268,-310.011,0.00013756,2]
[337494801,1725707442277,-249.499,0.00013756,2]
[337494802,1725707442287,-439.317,0.00013756,2]
[337494803,1725707442296,-103614.99630514,0.0001379,2]
[337494804,1725707442305,-151.0,0.0001379,2]
[337494805,1725707442314,-151.0,0.0001379,2]
[337494806,1725707442323,-151.0,0.0001379,2]
[337494807,1725707442332,-151.0,0.0001379,2]
[337494808,1725707442341,-196.732143,0.0001379,2]
[337494809,1725707442350,-196.732143,0.0001379,2]
[337494810,1725707442359,-151.0,0.0001379,2]
[337494811,1725707442368,-170.31234,0.0001379,2]
[337494812,1725707442378,-151.0,0.0001379,2]
[337494813,1725707442388,-151.0,0.0001379,2]
[337494814,1725707442397,-1606.136996,0.0001379,2]
[337494815,1725707442406,-151.0,0.0001379,2]
[337494816,1725707442415,-151.0,0.0001379,2]
[337494817,1725707442425,-512.311487,0.0001379,2]
[337494818,1725707442434,-512.311487,0.0001379,2]
[337494819,1725707442445,-154.068706,0.0001379,2]
[337494820,1725707442454,-154.068706,0.0001379,2]
[337494821,1725707442463,-151.0,0.0001379,2]
[337494822,1725707442473,-151.0,0.0001379,2]
[337494823,1725707442483,-397.299698,0.0001379,2]
[337494824,1725707442491,-397.299698,0.0001379,2]
[337494825,1725707442501,-12221.7601558,0.000139,3]
[337494826,1725707442510,-241.89,0.00013986,2]
[337494827,1725707442522,-500.0,0.00013986,2]
[337494828,1725707442531,-504.24,0.00013986,2]
[337494829,1725707442540,-382.78,0.00013986,2]
[337494830,1725707442550,-997.41643,0.0001402,2]
[337494831,1725707442560,-150.0,0.00014059,2]
[337494832,1725707442569,-276.51373317,0.00014079,2]
[337494833,1725707442579,-795.0,0.00014179,2]
[337494834,1725707442588,-400.49,0.00014192,2]
[337494836,1725707442734,-224.999218,0.00014247,2]
[337494837,1725707442744,-150.0,0.0001442,2]
[337494838,1725707442753,-258.53,0.00014478,2]
[337494840,1725707442763,-276.51373317,0.0001449,2]
[337494841,1725707442772,-5149.63760959,0.00014585,2]
[337494842,1725707442781,-587.0,0.00014611,2]
[337494843,1725707442790,-997.41643,0.0001465,2]
[337494844,1725707442799,-500.0,0.00014773,2]
[337494845,1725707442808,-500.0,0.00014773,2]
[337494846,1725707442818,-150.10419,0.00014773,2]
[337494847,1725707442827,-150.0,0.0001478,2]
[337494848,1725707442836,-301.06990434,0.00014794,2]
[337494849,1725707442845,-500.0,0.00014794,2]
[337494850,1725707442855,-500.0,0.00014794,2]
[337494851,1725707442864,-500.0,0.00014794,2]
[337494852,1725707442873,-500.0,0.00014794,2]